[Event "Early-Titled-Tuesday-Blitz-March-12-2024"]
[Site "Chess.com"]
[Date "2024.03.12"]
[Round "5"]
[White "KhazhatulyAlikhan"]
[Black "jaskol95"]
[Result "0-1"]
[WhiteElo "2448"]
[BlackElo "2563"]
[TimeControl "180+1"]
[EndTime "8:56:36 PDT"]
[Termination "jaskol95 won by resignation"]

1. e4 {[%clk 0:02:52.4]} 1... e6 {[%clk 0:03:00.2]} 2. d4 {[%clk 0:02:50.2]}
2... d5 {[%clk 0:02:59.2]} 3. Nd2 {[%clk 0:02:50.6]} 3... Nf6 {[%clk 0:02:58.2]}
4. e5 {[%clk 0:02:49.2]} 4... Nfd7 {[%clk 0:02:58.8]} 5. Bd3 {[%clk 0:02:46]}
5... c5 {[%clk 0:02:59]} 6. c3 {[%clk 0:02:46.3]} 6... Nc6 {[%clk 0:02:59.6]} 7.
Ne2 {[%clk 0:02:46.9]} 7... cxd4 {[%clk 0:03:00.3]} 8. cxd4 {[%clk 0:02:46.8]}
8... f6 {[%clk 0:03:00.9]} 9. exf6 {[%clk 0:02:46.3]} 9... Nxf6 {[%clk
0:03:01.8]} 10. O-O {[%clk 0:02:46.7]} 10... Bd6 {[%clk 0:03:02.5]} 11. Nf3
{[%clk 0:02:47.1]} 11... Qc7 {[%clk 0:03:03]} 12. Be3 {[%clk 0:02:47.5]} 12...
O-O {[%clk 0:03:02.4]} 13. Rc1 {[%clk 0:02:47.6]} 13... Bd7 {[%clk 0:03:02.5]}
14. Qd2 {[%clk 0:02:38.7]} 14... Ne4 {[%clk 0:02:38.1]} 15. Qc2 {[%clk
0:02:19.3]} 15... Nf6 {[%clk 0:01:30]} 16. Ng3 {[%clk 0:02:19.5]} 16... Qd8
{[%clk 0:01:26]} 17. Bg5 {[%clk 0:01:36.3]} 17... Nb4 {[%clk 0:01:14.1]} 18.
Bxf6 {[%clk 0:01:22.7]} 18... Rxf6 {[%clk 0:00:57.4]} 19. Bxh7+ {[%clk 0:01:22]}
19... Kh8 {[%clk 0:00:57.7]} 20. Qb1 {[%clk 0:01:22.5]} 20... Rh6 {[%clk
0:00:52.4]} 21. Bd3 {[%clk 0:01:11.5]} 21... Nxd3 {[%clk 0:00:39]} 22. Qxd3
{[%clk 0:01:12.4]} 22... Qa5 {[%clk 0:00:37.5]} 23. Qb1 {[%clk 0:00:56.4]} 23...
Bc6 {[%clk 0:00:31.4]} 24. Rfe1 {[%clk 0:00:54.7]} 24... Rf8 {[%clk 0:00:30.3]}
25. Ng5 {[%clk 0:00:50.3]} 25... Qd2 {[%clk 0:00:22.3]} 26. Nf3 {[%clk
0:00:44.4]} 26... Rxf3 {[%clk 0:00:21.5]} 27. gxf3 {[%clk 0:00:44.5]} 27... Qxd4
{[%clk 0:00:22.1]} 28. Kg2 {[%clk 0:00:15.8]} 28... Qh4 {[%clk 0:00:21.9]} 29.
Rh1 {[%clk 0:00:16.4]} 29... Qh3+ {[%clk 0:00:19.2]} 30. Kg1 {[%clk 0:00:16.9]}
30... d4 {[%clk 0:00:11.4]} 31. Qd3 {[%clk 0:00:17.4]} 31... e5 {[%clk
0:00:08.8]} 32. a3 {[%clk 0:00:11.5]} 32... Rf6 {[%clk 0:00:08.4]} 33. Ne4
{[%clk 0:00:06.8]} 33... Rxf3 {[%clk 0:00:06.8]} 34. Qe2 {[%clk 0:00:05.8]}
34... Qg4+ {[%clk 0:00:04.7]} 35. Kf1 {[%clk 0:00:03.6]} 35... Bxe4 {[%clk
0:00:05]} 36. Rg1 {[%clk 0:00:02.3]} 36... Qh3+ {[%clk 0:00:05.2]} 37. Ke1
{[%clk 0:00:02.9]} 37... d3 {[%clk 0:00:03.7]} 38. Qxe4 {[%clk 0:00:01.9]} 38...
Qf5 {[%clk 0:00:04.1]} 39. Qxf5 {[%clk 0:00:01.6]} 39... Rxf5 {[%clk 0:00:05]}
40. Rg3 {[%clk 0:00:02]} 40... e4 {[%clk 0:00:05.5]} 41. Rh3+ {[%clk 0:00:01.5]}
41... Kg8 {[%clk 0:00:05.6]} 42. Rc8+ {[%clk 0:00:02.4]} 42... Kf7 {[%clk
0:00:06.1]} 43. Rd8 {[%clk 0:00:02.9]} 43... Ke7 {[%clk 0:00:06.1]} 44. Rg8
{[%clk 0:00:02.9]} 44... Be5 {[%clk 0:00:06.3]} 45. Re3 {[%clk 0:00:01.9]} 45...
Rf4 {[%clk 0:00:06.1]} 46. f3 {[%clk 0:00:02.2]} 46... Bxb2 {[%clk 0:00:06.4]}
47. Rxe4+ {[%clk 0:00:01.9]} 47... Rxe4+ {[%clk 0:00:07.1]} 48. fxe4 {[%clk
0:00:02.8]} 48... Bc3+ {[%clk 0:00:07.5]} 49. Kd1 {[%clk 0:00:03.2]} 49... Kd6
{[%clk 0:00:08]} 50. Rf8 {[%clk 0:00:02.8]} 50... Ke5 {[%clk 0:00:08]} 51. Re8+
{[%clk 0:00:03.3]} 51... Kd4 {[%clk 0:00:08.1]} 52. Re7 {[%clk 0:00:03.8]} 52...
b5 {[%clk 0:00:08.3]} 53. h4 {[%clk 0:00:02.9]} 53... a5 {[%clk 0:00:08.7]} 54.
Rxg7 {[%clk 0:00:02.7]} 54... b4 {[%clk 0:00:09.1]} 55. axb4 {[%clk 0:00:02.1]}
55... axb4 {[%clk 0:00:10]} 56. Re7 {[%clk 0:00:01.4]} 56... b3 {[%clk 0:00:10]}
57. h5 {[%clk 0:00:01.9]} 57... b2 {[%clk 0:00:10.5]} 58. Rb7 {[%clk 0:00:02.6]}
58... Kc4 {[%clk 0:00:11]} 59. h6 {[%clk 0:00:03.1]} 59... Bb4 {[%clk
0:00:11.5]} 60. Rc7+ {[%clk 0:00:01.7]} 60... Kb3 {[%clk 0:00:11.9]} 61. Rc1
{[%clk 0:00:02.3]} 61... bxc1=Q+ {[%clk 0:00:12.3]} 62. Kxc1 {[%clk 0:00:03.2]}
62... Bc3 {[%clk 0:00:12.6]} 63. h7 {[%clk 0:00:03.6]} 63... Kc4 {[%clk
0:00:13.2]} 64. e5 {[%clk 0:00:01.8]} 64... Bxe5 {[%clk 0:00:12.3]} 65. Kd2
{[%clk 0:00:02.7]} 65... Kd4 {[%clk 0:00:12.9]} 66. Kd1 {[%clk 0:00:02]} 66...
Ke3 {[%clk 0:00:13.3]} 67. Ke1 {[%clk 0:00:02.5]} 67... Bh8 {[%clk 0:00:13.9]}
68. Kd1 {[%clk 0:00:03.4]} 68... d2 {[%clk 0:00:14.6]} 0-1

[Event "Early-Titled-Tuesday-Blitz-March-12-2024"]
[Site "Chess.com"]
[Date "2024.03.12"]
[Round "5"]
[White "WilsonPalencia21"]
[Black "JSPrepz"]
[Result "1/2-1/2"]
[WhiteElo "2571"]
[BlackElo "2840"]
[TimeControl "180+1"]
[EndTime "8:56:43 PDT"]
[Termination "Game drawn - insufficient material"]

1. d4 {[%clk 0:02:32.3]} 1... Nf6 {[%clk 0:03:00.1]} 2. Nf3 {[%clk 0:02:32]}
2... c5 {[%clk 0:03:00.7]} 3. d5 {[%clk 0:02:32]} 3... b5 {[%clk 0:03:01.4]} 4.
a4 {[%clk 0:02:31.2]} 4... b4 {[%clk 0:03:01.4]} 5. c4 {[%clk 0:02:29.7]} 5...
g6 {[%clk 0:03:01.8]} 6. Qc2 {[%clk 0:02:28.2]} 6... Bg7 {[%clk 0:03:02.7]} 7.
e4 {[%clk 0:02:28.2]} 7... O-O {[%clk 0:03:02.7]} 8. e5 {[%clk 0:02:28.1]} 8...
Ng4 {[%clk 0:03:01.8]} 9. Bf4 {[%clk 0:02:28]} 9... d6 {[%clk 0:03:02.4]} 10.
exd6 {[%clk 0:02:21.1]} 10... exd6 {[%clk 0:03:03.3]} 11. Be2 {[%clk 0:02:21.2]}
11... Bf5 {[%clk 0:03:03.5]} 12. Qd2 {[%clk 0:02:18.6]} 12... Re8 {[%clk
0:03:01.4]} 13. O-O {[%clk 0:02:18.4]} 13... Nf6 {[%clk 0:02:59.3]} 14. Re1
{[%clk 0:02:14.2]} 14... Ne4 {[%clk 0:02:59.1]} 15. Qc1 {[%clk 0:02:14.4]} 15...
Nd7 {[%clk 0:02:58.2]} 16. h3 {[%clk 0:02:13.2]} 16... Qf6 {[%clk 0:02:58.5]}
17. g4 {[%clk 0:02:04.1]} 17... Qxb2 {[%clk 0:02:37.5]} 18. Qxb2 {[%clk
0:02:02.5]} 18... Bxb2 {[%clk 0:02:38.4]} 19. Ra2 {[%clk 0:02:02.7]} 19... Bc3
{[%clk 0:02:33.9]} 20. gxf5 {[%clk 0:02:02.5]} 20... Bxe1 {[%clk 0:02:33]} 21.
Nxe1 {[%clk 0:02:02.5]} 21... Nc3 {[%clk 0:02:22.4]} 22. Nxc3 {[%clk 0:02:02.2]}
22... bxc3 {[%clk 0:02:23.3]} 23. Bxd6 {[%clk 0:01:56.9]} 23... Ne5 {[%clk
0:01:31.8]} 24. fxg6 {[%clk 0:01:49.6]} 24... Nxc4 {[%clk 0:01:26.3]} 25. Bxc4
{[%clk 0:01:43.7]} 25... Rxe1+ {[%clk 0:01:25.2]} 26. Kg2 {[%clk 0:01:43.5]}
26... hxg6 {[%clk 0:01:21.1]} 27. Rc2 {[%clk 0:01:42.9]} 27... Ra1 {[%clk
0:01:17.3]} 28. Bb5 {[%clk 0:01:18.2]} 28... Rd8 {[%clk 0:01:13.3]} 29. Bxc5
{[%clk 0:01:17.9]} 29... Rxd5 {[%clk 0:01:12.2]} 30. Rxc3 {[%clk 0:01:15.7]}
30... a6 {[%clk 0:01:09.4]} 31. Bc6 {[%clk 0:01:15.1]} 31... Rg5+ {[%clk
0:01:09.4]} 32. Kf3 {[%clk 0:01:10.7]} 32... Rf5+ {[%clk 0:01:07.8]} 33. Ke3
{[%clk 0:01:02]} 33... Re1+ {[%clk 0:00:56.6]} 34. Kd2 {[%clk 0:01:01.5]} 34...
Ra1 {[%clk 0:00:54.7]} 35. Bb6 {[%clk 0:00:55.6]} 35... Ra2+ {[%clk 0:00:53]}
36. Kd3 {[%clk 0:00:49.6]} 36... Rh5 {[%clk 0:00:44.1]} 37. Kc4 {[%clk
0:00:47.6]} 37... Rb2 {[%clk 0:00:43.6]} 38. a5 {[%clk 0:00:44.7]} 38... Rh4+
{[%clk 0:00:39.3]} 39. Kd5 {[%clk 0:00:44.7]} 39... Rd2+ {[%clk 0:00:39.6]} 40.
Ke5 {[%clk 0:00:38.7]} 40... Re2+ {[%clk 0:00:37.1]} 41. Kd6 {[%clk 0:00:34.2]}
41... Re6+ {[%clk 0:00:26.4]} 42. Kc7 {[%clk 0:00:33.7]} 42... Re7+ {[%clk
0:00:27]} 43. Kb8 {[%clk 0:00:27.2]} 43... Kg7 {[%clk 0:00:27.3]} 44. Bb7 {[%clk
0:00:26.8]} 44... Rh8+ {[%clk 0:00:23.1]} 45. Ka7 {[%clk 0:00:24.8]} 45... g5
{[%clk 0:00:09.9]} 46. Rc6 {[%clk 0:00:24.3]} 46... f6 {[%clk 0:00:09.9]} 47.
Bd4 {[%clk 0:00:21.8]} 47... Rf7 {[%clk 0:00:10.2]} 48. Rc3 {[%clk 0:00:19.5]}
48... Kg6 {[%clk 0:00:09.8]} 49. Kxa6 {[%clk 0:00:15.2]} 49... Rb8 {[%clk
0:00:10.4]} 50. Be4+ {[%clk 0:00:14.5]} 50... f5 {[%clk 0:00:11]} 51. Rc6+
{[%clk 0:00:14.4]} 51... Kh5 {[%clk 0:00:11.5]} 52. Bf3+ {[%clk 0:00:14.2]}
52... g4 {[%clk 0:00:12.2]} 53. hxg4+ {[%clk 0:00:14.2]} 53... fxg4 {[%clk
0:00:13.1]} 54. Bd5 {[%clk 0:00:14.5]} 54... Rd7 {[%clk 0:00:12.1]} 55. Rc5
{[%clk 0:00:13.7]} 55... Kh4 {[%clk 0:00:12.2]} 56. Be5 {[%clk 0:00:13.6]} 56...
Rbd8 {[%clk 0:00:07.5]} 57. Bg3+ {[%clk 0:00:13.7]} 57... Kh3 {[%clk 0:00:08.1]}
58. Bc6 {[%clk 0:00:14]} 58... Rh7 {[%clk 0:00:07.1]} 59. Kb6 {[%clk 0:00:14.1]}
59... Rh6 {[%clk 0:00:03.9]} 60. a6 {[%clk 0:00:13.9]} 60... Rd1 {[%clk
0:00:04.2]} 61. a7 {[%clk 0:00:13.6]} 61... Rb1+ {[%clk 0:00:04.6]} 62. Rb5
{[%clk 0:00:13.7]} 62... Ra1 {[%clk 0:00:05]} 63. Kb7 {[%clk 0:00:13.8]} 63...
Rh7+ {[%clk 0:00:02.9]} 64. Bc7 {[%clk 0:00:12.7]} 64... Rxa7+ {[%clk
0:00:02.3]} 65. Kxa7 {[%clk 0:00:12.8]} 65... Rxc7+ {[%clk 0:00:03.2]} 66. Kb6
{[%clk 0:00:13.4]} 66... Rf7 {[%clk 0:00:04.1]} 67. Bd5 {[%clk 0:00:12.6]} 67...
Rxf2 {[%clk 0:00:03.7]} 68. Be6 {[%clk 0:00:13.1]} 68... Rf4 {[%clk 0:00:03.5]}
69. Rh5+ {[%clk 0:00:13.3]} 69... Kg3 {[%clk 0:00:03.8]} 70. Rg5 {[%clk
0:00:13.7]} 70... Kf3 {[%clk 0:00:04.5]} 71. Bxg4+ {[%clk 0:00:13.5]} 71... Rxg4
{[%clk 0:00:04.7]} 72. Rxg4 {[%clk 0:00:14.3]} 72... Kxg4 {[%clk 0:00:05.6]}
1/2-1/2

[Event "Early-Titled-Tuesday-Blitz-March-12-2024"]
[Site "Chess.com"]
[Date "2024.03.12"]
[Round "5"]
[White "Msb2"]
[Black "Peng_Li-Min"]
[Result "1-0"]
[WhiteElo "3007"]
[BlackElo "2806"]
[TimeControl "180+1"]
[EndTime "8:56:54 PDT"]
[Termination "Msb2 won by checkmate"]

1. d4 {[%clk 0:03:00.9]} 1... Nf6 {[%clk 0:02:59.6]} 2. c4 {[%clk 0:03:01.6]}
2... e6 {[%clk 0:03:00.1]} 3. Nc3 {[%clk 0:03:02.4]} 3... Bb4 {[%clk 0:03:00.5]}
4. e3 {[%clk 0:03:03.1]} 4... O-O {[%clk 0:03:01]} 5. Bd2 {[%clk 0:03:03.7]}
5... d5 {[%clk 0:02:59.1]} 6. Nf3 {[%clk 0:03:04.2]} 6... b6 {[%clk 0:02:59.5]}
7. cxd5 {[%clk 0:03:04.1]} 7... exd5 {[%clk 0:02:59.5]} 8. Rc1 {[%clk
0:03:04.8]} 8... Bd6 {[%clk 0:02:56.3]} 9. Nb5 {[%clk 0:03:04.2]} 9... c5 {[%clk
0:02:56.1]} 10. dxc5 {[%clk 0:03:02.7]} 10... bxc5 {[%clk 0:02:55.2]} 11. Bc3
{[%clk 0:03:01.6]} 11... d4 {[%clk 0:02:26.6]} 12. Nfxd4 {[%clk 0:03:01.5]}
12... cxd4 {[%clk 0:02:17.2]} 13. Qxd4 {[%clk 0:03:02.4]} 13... Bc7 {[%clk
0:02:17.3]} 14. Qxd8 {[%clk 0:02:58]} 14... Bxd8 {[%clk 0:02:18.2]} 15. Bb4
{[%clk 0:02:58.7]} 15... Na6 {[%clk 0:01:55.9]} 16. Bxf8 {[%clk 0:02:57]} 16...
Kxf8 {[%clk 0:01:56.8]} 17. Nd6 {[%clk 0:02:44.4]} 17... Ba5+ {[%clk 0:01:42.3]}
18. Ke2 {[%clk 0:02:44.4]} 18... Be6 {[%clk 0:01:41.7]} 19. a3 {[%clk
0:02:39.3]} 19... Rb8 {[%clk 0:00:40.1]} 20. b4 {[%clk 0:02:39]} 20... Nxb4
{[%clk 0:00:40.7]} 21. axb4 {[%clk 0:02:36]} 21... Bxb4 {[%clk 0:00:41.6]} 22.
Nc4 {[%clk 0:02:07.2]} 22... Rc8 {[%clk 0:00:41.4]} 23. Kd1 {[%clk 0:02:07.1]}
23... Ne4 {[%clk 0:00:41.2]} 24. Rc2 {[%clk 0:01:32]} 24... Nc3+ {[%clk
0:00:20.6]} 25. Kd2 {[%clk 0:01:26.2]} 25... Bxc4 {[%clk 0:00:17.1]} 26. Bxc4
{[%clk 0:01:27.1]} 26... Rxc4 {[%clk 0:00:17.4]} 27. Kd3 {[%clk 0:01:27.8]}
27... Rc6 {[%clk 0:00:17.2]} 28. Rhc1 {[%clk 0:01:26.5]} 28... Rd6+ {[%clk
0:00:16.3]} 29. Kc4 {[%clk 0:01:26.7]} 29... a5 {[%clk 0:00:16.8]} 30. Kb3
{[%clk 0:01:22.9]} 30... Rb6 {[%clk 0:00:13.3]} 31. Ra1 {[%clk 0:01:10.1]} 31...
Nd5 {[%clk 0:00:09.5]} 32. Rc8+ {[%clk 0:01:09.9]} 32... Ke7 {[%clk 0:00:09.1]}
33. Kc4 {[%clk 0:01:09.4]} 33... Nf6 {[%clk 0:00:08.1]} 34. Rc7+ {[%clk
0:01:08.4]} 34... Nd7 {[%clk 0:00:08.6]} 35. Ra7 {[%clk 0:00:59.4]} 35... g6
{[%clk 0:00:08.1]} 36. Rd1 {[%clk 0:00:55.2]} 36... Bd6 {[%clk 0:00:08.5]} 37.
f4 {[%clk 0:00:51.5]} 37... Rb4+ {[%clk 0:00:08.2]} 38. Kc3 {[%clk 0:00:51]}
38... Rb6 {[%clk 0:00:06.9]} 39. e4 {[%clk 0:00:50.7]} 39... f6 {[%clk
0:00:07.2]} 40. Kc2 {[%clk 0:00:46.1]} 40... Rc6+ {[%clk 0:00:07.4]} 41. Kb3
{[%clk 0:00:45.6]} 41... Rc7 {[%clk 0:00:08.3]} 42. Rxc7 {[%clk 0:00:36.4]}
42... Bxc7 {[%clk 0:00:09.2]} 43. g3 {[%clk 0:00:37.3]} 43... Nc5+ {[%clk
0:00:09.4]} 44. Kc4 {[%clk 0:00:37]} 44... Nxe4 {[%clk 0:00:10.3]} 45. Re1
{[%clk 0:00:35.5]} 45... f5 {[%clk 0:00:10.8]} 46. Kd5 {[%clk 0:00:36.1]} 46...
Kf6 {[%clk 0:00:07.8]} 47. Rc1 {[%clk 0:00:34.8]} 47... Bd8 {[%clk 0:00:07.7]}
48. Rc8 {[%clk 0:00:34.1]} 48... Be7 {[%clk 0:00:07.6]} 49. Rc6+ {[%clk
0:00:34.3]} 49... Kf7 {[%clk 0:00:07.8]} 50. Ra6 {[%clk 0:00:35.2]} 50... Bb4
{[%clk 0:00:07.8]} 51. Ra7+ {[%clk 0:00:34.1]} 51... Kf6 {[%clk 0:00:08]} 52.
Ra6+ {[%clk 0:00:34.8]} 52... Kg7 {[%clk 0:00:08]} 53. Ra7+ {[%clk 0:00:34.8]}
53... Kh6 {[%clk 0:00:08.2]} 54. Ke6 {[%clk 0:00:33.5]} 54... Nc3 {[%clk
0:00:07.4]} 55. Kf7 {[%clk 0:00:33.6]} 55... g5 {[%clk 0:00:06.3]} 56. Kf6
{[%clk 0:00:28.5]} 56... Nd5+ {[%clk 0:00:06.3]} 57. Kxf5 {[%clk 0:00:28.6]}
57... gxf4 {[%clk 0:00:07.2]} 58. gxf4 {[%clk 0:00:28.3]} 58... Ne3+ {[%clk
0:00:06.5]} 59. Ke6 {[%clk 0:00:28.2]} 59... Ng4 {[%clk 0:00:05.2]} 60. f5
{[%clk 0:00:27.9]} 60... Bc3 {[%clk 0:00:05.3]} 61. h3 {[%clk 0:00:26.4]} 61...
Nf2 {[%clk 0:00:04.3]} 62. f6 {[%clk 0:00:25.4]} 62... Nxh3 {[%clk 0:00:03.3]}
63. f7 {[%clk 0:00:25.3]} 63... Ng5+ {[%clk 0:00:03.9]} 64. Ke7 {[%clk
0:00:20.3]} 64... Bb4+ {[%clk 0:00:04.4]} 65. Ke8 {[%clk 0:00:20.8]} 65... Nxf7
{[%clk 0:00:02.9]} 66. Kxf7 {[%clk 0:00:21.7]} 66... Kg5 {[%clk 0:00:02.8]} 67.
Ke6 {[%clk 0:00:20.1]} 67... h5 {[%clk 0:00:03.7]} 68. Ke5 {[%clk 0:00:20.4]}
68... Kg4 {[%clk 0:00:03.9]} 69. Ke4 {[%clk 0:00:20.7]} 69... Kg5 {[%clk
0:00:04.2]} 70. Rg7+ {[%clk 0:00:20.3]} 70... Kf6 {[%clk 0:00:04.6]} 71. Rh7
{[%clk 0:00:20.9]} 71... Kg6 {[%clk 0:00:05]} 72. Rb7 {[%clk 0:00:21.4]} 72...
Kg5 {[%clk 0:00:05.9]} 73. Kf3 {[%clk 0:00:21.5]} 73... Kg6 {[%clk 0:00:06.8]}
74. Rb5 {[%clk 0:00:21.7]} 74... Kh6 {[%clk 0:00:06.8]} 75. Kf4 {[%clk
0:00:21.8]} 75... Kg6 {[%clk 0:00:07.7]} 76. Rb6+ {[%clk 0:00:21.8]} 76... Kf7
{[%clk 0:00:07.9]} 77. Kf5 {[%clk 0:00:21.3]} 77... Ke7 {[%clk 0:00:08.2]} 78.
Rh6 {[%clk 0:00:21.7]} 78... Kd7 {[%clk 0:00:07.6]} 79. Ke4 {[%clk 0:00:21.3]}
79... Be7 {[%clk 0:00:07]} 80. Rxh5 {[%clk 0:00:21.4]} 80... a4 {[%clk
0:00:07.7]} 81. Ra5 {[%clk 0:00:21]} 81... a3 {[%clk 0:00:08]} 82. Kd5 {[%clk
0:00:21.7]} 82... Bb4 {[%clk 0:00:07.5]} 83. Ra4 {[%clk 0:00:21.7]} 83... Be7
{[%clk 0:00:07.1]} 84. Ra7+ {[%clk 0:00:22.1]} 84... Kd8 {[%clk 0:00:07.5]} 85.
Kc6 {[%clk 0:00:20.9]} 85... Bb4 {[%clk 0:00:07.5]} 86. Ra4 {[%clk 0:00:21.3]}
86... Be7 {[%clk 0:00:06.5]} 87. Ra8# {[%clk 0:00:21.5]} 1-0

[Event "Early-Titled-Tuesday-Blitz-March-12-2024"]
[Site "Chess.com"]
[Date "2024.03.12"]
[Round "5"]
[White "Matibar"]
[Black "Polish_fighter3000"]
[Result "0-1"]
[WhiteElo "2764"]
[BlackElo "3117"]
[TimeControl "180+1"]
[EndTime "8:57:01 PDT"]
[Termination "Polish_fighter3000 won by resignation"]

1. e4 {[%clk 0:03:00.9]} 1... Nf6 {[%clk 0:02:59.1]} 2. e5 {[%clk 0:02:59.9]}
2... Nd5 {[%clk 0:02:59.7]} 3. d4 {[%clk 0:02:59.5]} 3... d6 {[%clk 0:03:00.2]}
4. Nf3 {[%clk 0:02:58.2]} 4... dxe5 {[%clk 0:02:59.9]} 5. Nxe5 {[%clk 0:02:58]}
5... c6 {[%clk 0:03:00.5]} 6. Bd3 {[%clk 0:02:52.1]} 6... Nd7 {[%clk 0:02:57.6]}
7. Nxd7 {[%clk 0:02:49]} 7... Bxd7 {[%clk 0:02:55.2]} 8. c3 {[%clk 0:02:49.2]}
8... Qc8 {[%clk 0:02:42.9]} 9. O-O {[%clk 0:02:42.8]} 9... Bf5 {[%clk
0:02:41.5]} 10. Re1 {[%clk 0:02:41.3]} 10... Bxd3 {[%clk 0:02:39.1]} 11. Qxd3
{[%clk 0:02:41.1]} 11... e6 {[%clk 0:02:37.9]} 12. Nd2 {[%clk 0:02:35.9]} 12...
Be7 {[%clk 0:02:37.4]} 13. Ne4 {[%clk 0:02:34.5]} 13... O-O {[%clk 0:02:32]} 14.
Qg3 {[%clk 0:02:31.5]} 14... Qc7 {[%clk 0:02:31.9]} 15. Qxc7 {[%clk 0:02:16]}
15... Nxc7 {[%clk 0:02:32.8]} 16. Bf4 {[%clk 0:02:15.5]} 16... Nd5 {[%clk
0:02:31.7]} 17. Bd6 {[%clk 0:02:10.9]} 17... Rfe8 {[%clk 0:02:19.9]} 18. a4
{[%clk 0:02:06.6]} 18... a5 {[%clk 0:02:02.8]} 19. g3 {[%clk 0:02:00]} 19...
Rad8 {[%clk 0:01:53.5]} 20. Bxe7 {[%clk 0:01:54.7]} 20... Rxe7 {[%clk
0:01:54.4]} 21. Kg2 {[%clk 0:01:53.8]} 21... f6 {[%clk 0:01:47.8]} 22. Nc5
{[%clk 0:01:34.6]} 22... Kf7 {[%clk 0:01:47.6]} 23. Re2 {[%clk 0:01:22.9]} 23...
b6 {[%clk 0:01:37.6]} 24. Nd3 {[%clk 0:01:21.8]} 24... e5 {[%clk 0:01:24.6]} 25.
dxe5 {[%clk 0:00:54]} 25... Nxc3 {[%clk 0:01:24.6]} 26. bxc3 {[%clk 0:00:54.9]}
26... Rxd3 {[%clk 0:01:23.9]} 27. Rb1 {[%clk 0:00:49.7]} 27... Rxe5 {[%clk
0:01:00.5]} 28. Rxe5 {[%clk 0:00:48.5]} 28... fxe5 {[%clk 0:01:01.4]} 29. Rxb6
{[%clk 0:00:48.8]} 29... Rxc3 {[%clk 0:01:02]} 30. Ra6 {[%clk 0:00:49.1]} 30...
Rc5 {[%clk 0:01:01.8]} 31. Kf3 {[%clk 0:00:40.8]} 31... Kf6 {[%clk 0:00:47.9]}
32. Ke4 {[%clk 0:00:29.2]} 32... g5 {[%clk 0:00:37.7]} 33. f3 {[%clk 0:00:24.4]}
33... h5 {[%clk 0:00:36.1]} 34. Kd3 {[%clk 0:00:18.3]} 34... g4 {[%clk
0:00:28.6]} 35. fxg4 {[%clk 0:00:18]} 35... hxg4 {[%clk 0:00:29.5]} 36. Ra8
{[%clk 0:00:18.1]} 36... Rd5+ {[%clk 0:00:16.2]} 37. Ke3 {[%clk 0:00:17.2]}
37... Kf5 {[%clk 0:00:16.3]} 38. Rf8+ {[%clk 0:00:15.8]} 38... Ke6 {[%clk
0:00:16.9]} 39. Ra8 {[%clk 0:00:15]} 39... Kd6 {[%clk 0:00:15.9]} 40. Ra7 {[%clk
0:00:14.3]} 40... Rc5 {[%clk 0:00:14.5]} 41. Kd3 {[%clk 0:00:12.3]} 41... Kd5
{[%clk 0:00:12.6]} 42. Ra8 {[%clk 0:00:12.5]} 42... e4+ {[%clk 0:00:12]} 43. Ke3
{[%clk 0:00:12.9]} 43... Rc3+ {[%clk 0:00:11.1]} 44. Kf4 {[%clk 0:00:13.3]}
44... e3 {[%clk 0:00:07.8]} 45. Rd8+ {[%clk 0:00:11.8]} 45... Kc4 {[%clk
0:00:07.7]} 46. Kxg4 {[%clk 0:00:10.9]} 46... e2 {[%clk 0:00:03.6]} 47. Re8
{[%clk 0:00:10.3]} 47... Kd3 {[%clk 0:00:02.4]} 48. Kf3 {[%clk 0:00:08.5]} 48...
Rc5 {[%clk 0:00:01.7]} 49. Re3+ {[%clk 0:00:07.5]} 49... Kc4 {[%clk 0:00:01.5]}
50. Rxe2 {[%clk 0:00:07.6]} 50... Kb3 {[%clk 0:00:02]} 51. Re4 {[%clk
0:00:07.3]} 51... Rf5+ {[%clk 0:00:01.7]} 52. Kg4 {[%clk 0:00:07.2]} 52... Rf1
{[%clk 0:00:01.4]} 53. h4 {[%clk 0:00:07.3]} 53... c5 {[%clk 0:00:02]} 54. h5
{[%clk 0:00:07.6]} 54... c4 {[%clk 0:00:02.6]} 55. Kg5 {[%clk 0:00:07.8]} 55...
c3 {[%clk 0:00:02.6]} 56. Re3 {[%clk 0:00:07.8]} 56... Kb4 {[%clk 0:00:02.8]}
57. Re2 {[%clk 0:00:02.7]} 57... Rh1 {[%clk 0:00:02.2]} 58. Kh6 {[%clk
0:00:02.6]} 58... Kxa4 {[%clk 0:00:02.3]} 59. g4 {[%clk 0:00:03]} 59... Kb3
{[%clk 0:00:02.7]} 60. g5 {[%clk 0:00:03.4]} 60... a4 {[%clk 0:00:02.1]} 61. g6
{[%clk 0:00:03.6]} 61... c2 {[%clk 0:00:01.9]} 62. Re3+ {[%clk 0:00:02.6]} 62...
Kb2 {[%clk 0:00:01.9]} 63. Re2 {[%clk 0:00:03]} 63... a3 {[%clk 0:00:02.1]} 64.
g7 {[%clk 0:00:02.8]} 64... Rg1 {[%clk 0:00:02.4]} 65. Kh7 {[%clk 0:00:03.1]}
65... a2 {[%clk 0:00:03]} 66. g8=Q {[%clk 0:00:03.1]} 66... Rxg8 {[%clk
0:00:02.5]} 67. Kxg8 {[%clk 0:00:04]} 67... a1=Q {[%clk 0:00:03]} 68. Rxc2+
{[%clk 0:00:01.1]} 68... Kxc2 {[%clk 0:00:02.7]} 69. h6 {[%clk 0:00:02]} 69...
Qa8+ {[%clk 0:00:03]} 70. Kg7 {[%clk 0:00:02.2]} 70... Qb7+ {[%clk 0:00:03.8]}
71. Kg8 {[%clk 0:00:02.7]} 71... Qc8+ {[%clk 0:00:04.4]} 72. Kg7 {[%clk
0:00:03.4]} 72... Qd7+ {[%clk 0:00:05]} 73. Kg8 {[%clk 0:00:03.9]} 73... Qe6+
{[%clk 0:00:05.5]} 74. Kg7 {[%clk 0:00:04.4]} 74... Qe7+ {[%clk 0:00:06.1]} 75.
Kg8 {[%clk 0:00:04.8]} 75... Qg5+ {[%clk 0:00:06.4]} 76. Kh7 {[%clk 0:00:04.6]}
76... Kd3 {[%clk 0:00:06.8]} 0-1